bitfinex-derivatives/quotes_BTCF0:USTF0_20250313
["timestamp","ask_amount","ask_price","bid_price","bid_amount"]
[1741825489453,0.0972408,83879.0,83878.0,0.35334221]
[1741825489940,0.0972408,83879.0,83878.0,0.23410001]
[1741825490140,0.0972408,83879.0,83878.0,0.35334221]
[1741825490544,0.0972408,83879.0,83878.0,0.23410001]
[1741825491644,0.0972408,83879.0,83878.0,1e-08]
[1741825491645,0.2544408,83879.0,83878.0,1e-08]
[1741825492655,0.2544408,83879.0,83878.0,0.15790001]
[1741825492858,0.0972408,83879.0,83878.0,0.15790001]
[1741825495853,0.0772408,83879.0,83878.0,0.15790001]
[1741825500966,0.1506408,83879.0,83878.0,0.15790001]
[1741825501167,0.0772408,83879.0,83878.0,0.15790001]
[1741825502972,0.0772408,83879.0,83878.0,0.27714221]
[1741825503157,0.1192209,83893.0,83888.0,0.0596139]
[1741825503363,0.1192251,83890.0,83889.0,0.2343]
[1741825504468,0.0596124,83891.0,83878.0,1e-08]
[1741825504777,0.1192393,83880.0,83879.0,0.1537]
[1741825506571,0.1192393,83880.0,83879.0,0.2729408]
[1741825506775,0.1192393,83880.0,83879.0,0.1537]
[1741825507773,0.1192393,83880.0,83879.0,0.2729408]
[1741825507969,0.1192393,83880.0,83879.0,0.1537]
[1741825510971,0.13122759,83880.0,83879.0,0.1537]
[1741825511275,0.13122759,83880.0,83878.0,1e-08]
[1741825511486,0.2803408,83879.0,83878.0,1e-08]
[1741825511776,0.1192436,83877.0,83876.0,0.0162996]
[1741825512077,0.3005209,83879.0,83873.0,0.01590954]
[1741825512078,0.119245,83876.0,83875.0,1e-07]
[1741825512272,0.276345,83876.0,83875.0,1e-07]
[1741825513179,0.3071,83876.0,83867.0,1e-07]
[1741825513377,0.1192564,83868.0,83867.0,1e-07]
[1741825513576,0.3986164,83868.0,83867.0,1e-07]
[1741825514168,0.5507164,83868.0,83867.0,1e-07]
[1741825514373,0.4007164,83868.0,83867.0,1e-07]
[1741825515581,0.2713564,83868.0,83867.0,1e-07]
[1741825515980,0.2713564,83868.0,83867.0,0.0756001]
[1741825516177,0.2713564,83868.0,83867.0,0.1546001]
[1741825516370,0.1192564,83868.0,83867.0,0.2738579]
[1741825516567,0.05875222,83876.0,83867.0,0.1546001]
[1741825516568,0.05815221,83876.0,83867.0,0.1546001]
[1741825516768,0.05815221,83876.0,83875.0,0.1192464]
[1741825519484,0.21368459,83876.0,83875.0,0.2777464]
[1741825520279,0.21368459,83876.0,83875.0,0.5377464]
[1741825520984,0.21368459,83876.0,83875.0,0.2777464]
[1741825521186,0.33292959,83876.0,83875.0,0.2777464]
[1741825521682,0.11942381,83876.0,83875.0,0.2777464]
[1741825521986,0.00017881,83876.0,83875.0,0.2777464]
[1741825523283,0.00017881,83876.0,83875.0,0.4061464]
[1741825523478,0.11942381,83876.0,83875.0,0.4061464]
[1741825523678,0.10442381,83876.0,83875.0,0.4061464]
[1741825523973,0.059619,83881.0,83880.0,0.1192393]
[1741825524785,0.14254438,83893.0,83892.0,0.1192223]
[1741825524987,0.15733094,83910.0,83897.0,0.1192152]
[1741825525178,0.00017881,83901.0,83897.0,0.3992152]
[1741825525782,0.00017881,83901.0,83897.0,0.4764152]
[1741825526387,0.00017881,83901.0,83900.0,0.1192109]
[1741825526592,0.00017881,83901.0,83900.0,0.3792109]
[1741825527083,0.00017881,83901.0,83900.0,0.6492109]
[1741825527273,0.21350578,83905.0,83904.0,0.1192052]
[1741825527274,0.04910728,83905.0,83904.0,0.1192052]
[1741825527590,0.15733094,83912.0,83911.0,0.1191953]
[1741825527775,0.24712905,83917.0,83916.0,0.1191882]
[1741825527970,0.24712905,83917.0,83916.0,0.6324282]
[1741825528275,0.24712905,83917.0,83916.0,0.6524282]
[1741825528673,0.24712905,83917.0,83916.0,0.8024282]
[1741825528873,0.24712905,83917.0,83916.0,0.81485088]
[1741825529182,0.34908193,83919.0,83918.0,0.1191853]
[1741825529375,0.34908193,83919.0,83918.0,0.7295853]
[1741825529687,0.34908193,83919.0,83918.0,0.4595853]
[1741825529986,0.34908193,83919.0,83918.0,0.4795853]
[1741825530280,0.34908193,83919.0,83918.0,0.7395853]
[1741825530481,0.34908193,83919.0,83918.0,0.5921053]
[1741825530782,0.34908193,83919.0,83918.0,0.8821053]
[1741825531084,0.34908193,83919.0,83918.0,0.5326853]
[1741825531275,0.0735,83922.0,83920.0,0.1191811]
[1741825531476,0.0735,83922.0,83921.0,0.2682811]
[1741825531881,0.0735,83922.0,83921.0,0.4008011]
[1741825533077,0.0735,83922.0,83921.0,0.6608011]
[1741825533284,0.00017881,83925.0,83924.0,0.1191768]
[1741825533484,0.11935421,83925.0,83924.0,0.1191768]
[1741825533685,0.00017881,83925.0,83921.0,0.00088]
[1741825533873,0.1191797,83922.0,83921.0,0.1191782]
[1741825534078,0.1191839,83919.0,83918.0,0.13272]
[1741825535675,0.1191839,83919.0,83918.0,0.2519053]
[1741825535981,0.210891,83921.0,83918.0,0.2519053]
[1741825535982,0.2108906,83921.0,83918.0,0.13272]
[1741825536181,0.1191839,83919.0,83918.0,0.251903]
[1741825536686,0.1191839,83919.0,83918.0,0.13272]
[1741825537489,0.2108906,83921.0,83908.0,0.05977821]
[1741825537490,0.1191981,83909.0,83908.0,0.00017881]
[1741825538385,0.2773981,83909.0,83908.0,0.00017881]
[1741825540185,0.2773981,83909.0,83908.0,0.11937831]
[1741825540385,0.079,83909.0,83908.0,0.25209831]
[1741825540586,0.1981981,83909.0,83908.0,0.20789881]
[1741825540787,0.1981981,83909.0,83908.0,0.32709831]
[1741825540984,0.079,83909.0,83908.0,0.32709831]
[1741825541294,0.1981981,83909.0,83908.0,0.32709831]
[1741825541679,0.1981981,83909.0,83908.0,0.13289881]
[1741825541885,0.2755981,83909.0,83908.0,0.13289881]
[1741825542593,0.2755981,83909.0,83908.0,0.25209831]
[1741825542783,0.2755981,83909.0,83908.0,0.13289881]
[1741825548096,0.0596032,83904.0,83885.0,0.1004]
[1741825548297,0.1192209,83893.0,83892.0,0.2511022]
[1741825549201,0.2678209,83893.0,83892.0,0.2511022]
[1741825549696,0.2678209,83893.0,83892.0,0.13188]
[1741825550988,0.1192223,83892.0,83891.0,0.11931859]
[1741825551193,0.1192223,83892.0,83891.0,0.13165559]
[1741825551388,0.2727223,83892.0,83891.0,0.25087929]
[1741825551592,0.2727223,83892.0,83891.0,9.559e-05]
[1741825552701,0.1535,83892.0,83891.0,0.25059929]
[1741825553298,0.2727223,83892.0,83891.0,0.25059929]
[1741825553499,0.2727223,83892.0,83891.0,0.40379929]
[1741825553693,0.1535,83892.0,83891.0,0.40379929]
[1741825555199,0.0595992,83909.0,83900.0,0.1192109]
[1741825555401,0.0768,83908.0,83900.0,0.1192109]
[1741825555907,0.1192054,83904.0,83900.0,0.1192109]
[1741825556202,0.085,83903.0,83900.0,0.13133711]
[1741825556390,0.085,83903.0,83900.0,0.1192109]
[1741825556590,0.0803,83902.0,83900.0,0.1192109]
[1741825556996,0.08517881,83901.0,83900.0,0.1192109]
[1741825557199,0.20438831,83901.0,83900.0,0.1192109]
[1741825558906,0.1192194,83894.0,83893.0,0.0779]
[1741825559100,0.1192194,83894.0,83893.0,0.1971209]
[1741825559698,0.2823194,83894.0,83893.0,0.1971209]
[1741825560698,0.1631,83894.0,83893.0,0.1971209]
[1741825560898,0.0804,83894.0,83893.0,0.1971209]
[1741825561096,0.0839,83900.0,83899.0,0.1192123]
[1741825561298,0.2858109,83900.0,83899.0,0.1192123]
[1741825561501,0.1666,83900.0,83899.0,0.1192123]
[1741825561699,0.1666,83900.0,83899.0,0.2887123]
[1741825562494,0.0595888,83924.0,83900.0,0.1192109]
[1741825562701,0.0839,83914.0,83913.0,0.1191924]
[1741825563016,0.203091,83914.0,83913.0,0.2494724]
[1741825564308,0.203091,83914.0,83913.0,0.3338724]
[1741825565412,0.203091,83914.0,83913.0,0.4139724]
[1741825565612,0.203091,83914.0,83913.0,0.3338724]
[1741825566296,0.0839,83914.0,83913.0,0.4139724]
[1741825566714,0.203091,83914.0,83913.0,0.3338724]
[1741825568806,0.0839,83914.0,83913.0,0.3338724]
[1741825569006,0.0839,83914.0,83913.0,0.4120724]
[1741825570105,0.00017881,83922.0,83920.0,0.1191825]
[1741825570417,0.00017881,83922.0,83921.0,0.2836811]
[1741825571118,0.00017881,83922.0,83921.0,0.4236811]
[1741825571808,0.33272003,83937.0,83936.0,0.1191598]
[1741825572009,0.33272003,83937.0,83936.0,0.2483998]
[1741825572212,0.33272003,83937.0,83936.0,0.12924]
[1741825572815,0.33272003,83937.0,83936.0,0.2483998]
[1741825572816,0.119159,83937.0,83936.0,0.2483998]
[1741825573009,0.119159,83937.0,83936.0,0.12924]
[1741825573010,0.202859,83937.0,83936.0,0.12924]
[1741825573411,0.0837,83937.0,83936.0,0.1191598]
[1741825573812,0.00017881,83945.0,83936.0,0.15]
[1741825574014,0.0837,83944.0,83943.0,0.1191498]
[1741825574216,0.2028484,83944.0,83943.0,0.1191498]
[1741825574712,0.0837,83944.0,83943.0,0.2876498]
[1741825574913,0.00017881,83945.0,83944.0,0.1191484]
[1741825575116,0.00017881,83945.0,83944.0,0.2482284]
[1741825575317,0.00017881,83945.0,83944.0,0.4167284]
[1741825576920,0.005,83973.0,83967.0,0.1191158]
[1741825577111,0.33267543,83968.0,83967.0,0.12904]
[1741825577913,0.1191371,83952.0,83951.0,0.0803]
[1741825578114,0.0595642,83959.0,83951.0,0.129]
[1741825578427,0.2468,83958.0,83957.0,0.11913]
[1741825581013,0.1634,83958.0,83957.0,0.11913]
[1741825581219,0.1634,83958.0,83957.0,0.19673]
[1741825581421,0.0843,83958.0,83957.0,0.27833]
[1741825581824,0.0789,83971.0,83970.0,0.1191115]
[1741825582126,0.0789,83971.0,83970.0,0.2477515]
[1741825582823,0.1190924,83984.0,83970.0,0.12864]
[1741825583016,0.0789,83975.0,83972.0,0.1191087]
[1741825583931,0.0856,83974.0,83972.0,0.1191087]
[1741825584418,0.1616,83973.0,83972.0,0.1191087]
[1741825585229,0.1616,83973.0,83972.0,0.3316687]
[1741825586114,0.0825,83973.0,83972.0,0.3316687]
[1741825586823,0.0825,83973.0,83972.0,0.34398598]
[1741825587012,0.0825,83973.0,83972.0,0.48398598]
[1741825587515,0.0796,83994.0,83993.0,0.1190789]
[1741825588025,0.0595367,83997.0,83993.0,0.12884]
[1741825588328,0.0829,83996.0,83993.0,0.12884]
[1741825588733,0.2019754,83996.0,83994.0,0.1190765]
[1741825589226,0.0829,83996.0,83995.0,0.1190761]
[1741825590017,0.0829,83996.0,83995.0,0.2852761]
[1741825590217,0.0829,83996.0,83995.0,0.4138361]
[1741825590427,0.0829,83996.0,83995.0,0.29476]
[1741825590621,0.0829,83996.0,83987.0,0.1662]
[1741825590821,0.0829,83996.0,83995.0,0.1190761]
[1741825591317,0.0829,83996.0,83995.0,0.2475961]
[1741825593327,0.0829,83996.0,83995.0,0.3288561]
[1741825593729,0.0829,83996.0,83995.0,0.2477561]
[1741825593928,0.2019747,83996.0,83995.0,0.12856]
[1741825594133,0.2019747,83996.0,83995.0,0.2476361]
[1741825594524,0.0829,83996.0,83995.0,0.2476361]
[1741825595521,0.0829,83996.0,83995.0,0.1190761]
[1741825595727,0.0829,83996.0,83995.0,0.2475161]
[1741825596029,0.0829,83996.0,83995.0,0.1190761]
[1741825596218,0.0829,83996.0,83995.0,0.4652361]
[1741825596424,3.10664,84000.0,83995.0,0.4652361]
[1741825596425,3.10664,84000.0,83999.0,0.1190704]
[1741825596620,3.106,84000.0,83999.0,0.1190704]
[1741825596937,3.106,84000.0,83999.0,0.2474304]
[1741825597320,3.106,84000.0,83999.0,0.3252304]
[1741825597527,3.106,84000.0,83999.0,0.3251504]
[1741825597727,3.106,84000.0,83999.0,0.1968704]
[1741825598025,3.106,84000.0,83999.0,0.3368704]
[1741825598226,2.8185737,84000.0,83999.0,0.3250704]
[1741825598432,2.55764513,84000.0,83999.0,0.58591872]
[1741825598634,2.55764513,84000.0,83999.0,0.3668704]
[1741825598827,2.55764513,84000.0,83991.0,0.1004]
[1741825599023,2.55764513,84000.0,83999.0,0.1980704]
[1741825599429,2.55764513,84000.0,83999.0,0.1190704]
[1741825599639,2.55764513,84000.0,83999.0,0.2473104]
[1741825599937,2.67671413,84000.0,83999.0,0.1190704]
[1741825600139,2.67671413,84000.0,83999.0,0.2472704]
[1741825601243,2.55764513,84000.0,83999.0,0.2471504]
[1741825601430,0.1190704,83999.0,83998.0,0.2823714]
[1741825601626,2.55824514,84000.0,83999.0,0.1190704]
[1741825601834,2.55764513,84000.0,83999.0,0.2828704]
[1741825602228,2.55764513,84000.0,83999.0,0.4107904]
[1741825602735,2.67671413,84000.0,83999.0,0.4107904]
[1741825602940,2.67671413,84000.0,83999.0,0.3266104]
[1741825604745,2.67671413,84000.0,83999.0,0.2469104]
[1741825604946,2.67671413,84000.0,83999.0,0.2474704]
[1741825606144,0.1190775,83994.0,83993.0,0.0787]
[1741825606342,2.55764513,84000.0,83993.0,0.12824]
[1741825606343,0.0829,83999.0,83993.0,0.12824]
[1741825606646,0.1190775,83995.0,83994.0,0.1190775]
[1741825606847,0.0595379,83996.0,83993.0,0.12824]
[1741825607145,0.2019775,83994.0,83993.0,0.1190781]
[1741825607531,0.2019775,83994.0,83992.0,0.12816]
[1741825607532,0.1190789,83993.0,83992.0,0.12816]
[1741825608143,0.0829,83994.0,83988.0,0.21168851]
[1741825608346,0.0595386,83995.0,83988.0,0.21168851]
[1741825608347,0.1190846,83989.0,83988.0,0.21168851]
[1741825609040,0.1190846,83989.0,83988.0,0.08008851]
[1741825609256,0.0595449,83986.0,83976.0,0.35234236]
[1741825609444,0.0595487,83980.0,83976.0,0.35234236]
[1741825609638,0.1191016,83977.0,83976.0,0.35142236]
[1741825609944,0.1191101,83971.0,83970.0,0.47946236]
[1741825610145,0.1191101,83971.0,83970.0,0.35142236]
[1741825611045,0.1191215,83963.0,83962.0,0.00017859]
[1741825611936,0.1111215,83963.0,83962.0,0.00017859]
[1741825613135,0.1961215,83963.0,83962.0,0.00017859]
[1741825614133,0.085,83963.0,83962.0,0.00017859]
[1741825614340,0.1786807,83969.0,83968.0,0.0595566]
[1741825614640,0.1786564,83976.0,83975.0,0.1191044]
[1741825615439,0.0595521,83976.0,83973.0,0.1679]
[1741825615641,0.1191059,83974.0,83973.0,0.2870063]
[1741825617744,0.1191101,83971.0,83970.0,0.12792]
[1741825617945,0.1191215,83963.0,83954.0,0.2045332]
[1741825618143,0.13110283,83963.0,83958.0,0.12796]
[1741825618948,0.21260283,83963.0,83950.0,0.00012201]
[1741825619144,0.1191314,83956.0,83950.0,0.00012201]
[1741825619632,0.1191385,83951.0,83950.0,0.00012201]
[1741825619836,0.1191385,83951.0,83950.0,0.19946191]
[1741825620738,0.2006385,83951.0,83950.0,0.19946191]
[1741825624648,0.2006385,83951.0,83950.0,0.08032201]
[1741825625251,0.2006385,83951.0,83950.0,0.19946191]
[1741825625445,0.2006385,83951.0,83950.0,0.28456191]
[1741825626243,0.2006385,83951.0,83942.0,0.12825859]
[1741825626244,0.0816021,83951.0,83942.0,0.12825859]
[1741825626451,0.1191498,83943.0,83942.0,0.24740989]
[1741825627145,0.1191498,83943.0,83942.0,0.00017859]
[1741825627344,0.2040498,83943.0,83942.0,0.00017859]
[1741825627551,0.2040498,83943.0,83942.0,0.08337859]
[1741825628054,0.2040498,83943.0,83942.0,0.20252989]
[1741825629148,0.2040498,83943.0,83942.0,0.08337859]
[1741825630154,0.21530313,83943.0,83942.0,0.08337859]
[1741825630450,0.21530313,83943.0,83942.0,0.20252989]
[1741825630653,0.01125333,83943.0,83942.0,0.20252989]
[1741825631355,0.01125333,83943.0,83942.0,0.33048989]
[1741825631547,0.0001021,83951.0,83942.0,0.55173859]
[1741825631860,0.0001021,83951.0,83950.0,0.1191399]
[1741825632351,0.0001021,83951.0,83950.0,0.1791399]
[1741825632555,0.002073,84037.0,83950.0,0.1447]
[1741825632556,0.14207186,83956.0,83950.0,0.1447]
[1741825632758,0.14207186,83956.0,83955.0,0.1191328]
[1741825634243,0.15308084,83956.0,83955.0,0.1191328]
[1741825634448,0.27221224,83956.0,83955.0,0.1191328]
[1741825634650,0.0971328,83955.0,83954.0,0.0847]
[1741825634960,0.0971328,83955.0,83943.0,0.12792]
[1741825634961,0.1191484,83944.0,83943.0,0.12792]
[1741825635151,0.01101691,83944.0,83942.0,0.00017859]
[1741825635462,0.29746671,83943.0,83942.0,0.00017859]
[1741825636350,0.119164,83933.0,83932.0,0.119805]
[1741825636551,0.13014466,83933.0,83932.0,0.119165]
[1741825637868,0.01098066,83933.0,83932.0,0.204765]
[1741825639152,0.01098066,83933.0,83932.0,0.285165]
[1741825639354,0.13014466,83933.0,83932.0,0.285165]
[1741825639668,0.13014466,83933.0,83932.0,0.119165]
[1741825639849,0.21394466,83933.0,83932.0,0.119165]
[1741825640259,0.286164,83933.0,83932.0,0.284265]
[1741825642246,0.29717093,83933.0,83932.0,0.284265]
[1741825642450,0.27717093,83933.0,83932.0,0.284265]
[1741825643948,0.28848011,83933.0,83932.0,0.284265]
[1741825644258,0.28846879,83933.0,83932.0,0.284265]
[1741825646663,0.28846879,83933.0,83932.0,0.0847]
[1741825646866,0.28846879,83933.0,83916.0,0.0595934]
[1741825646867,0.1191754,83925.0,83916.0,0.0595934]
[1741825647167,0.13017101,83925.0,83921.0,0.12704]
[1741825647557,0.14148019,83925.0,83921.0,0.12704]
[1741825647760,0.20023282,83925.0,83910.0,0.00072]
[1741825648058,0.20023282,83925.0,83906.0,0.00178751]
[1741825648059,0.1191924,83913.0,83912.0,0.12724]
[1741825648260,0.13052496,83913.0,83912.0,0.12724]
[1741825648563,0.14183414,83913.0,83912.0,0.12724]
[1741825649066,0.1191939,83912.0,83911.0,0.1191947]
[1741825649253,0.13052646,83912.0,83911.0,0.2051947]
[1741825649453,0.29222646,83912.0,83911.0,0.2051947]
[1741825649655,0.30353564,83912.0,83911.0,0.2051947]
[1741825649856,0.18434174,83912.0,83905.0,0.01191476]
[1741825650057,0.119201,83907.0,83906.0,0.12878751]
[1741825650257,0.119201,83907.0,83906.0,0.21478751]
[1741825650258,0.13053356,83907.0,83906.0,0.21478751]
[1741825650654,0.14184274,83907.0,83906.0,0.33398991]
[1741825650852,0.31054274,83907.0,83906.0,0.41668991]
[1741825651351,0.31054274,83907.0,83906.0,0.08778751]
[1741825651561,0.31054274,83907.0,83906.0,0.00178751]
[1741825652162,0.1192024,83906.0,83905.0,0.12688]
[1741825652357,0.14184414,83906.0,83905.0,0.12688]
[1741825652568,0.30884414,83906.0,83905.0,0.12688]
[1741825652765,0.1192038,83905.0,83904.0,0.00017869]
[1741825652951,0.21013636,83905.0,83904.0,0.00017869]
[1741825653155,0.37713636,83905.0,83904.0,0.00017869]
[1741825653563,0.38844554,83905.0,83904.0,0.00017869]
[1741825653956,0.1192095,83901.0,83900.0,0.10009667]
[1741825654152,0.13054206,83901.0,83900.0,0.10009667]
[1741825654357,0.13059497,83901.0,83900.0,0.10009667]
[1741825654771,0.13059497,83901.0,83888.0,0.01079366]
[1741825654772,0.1192265,83889.0,83888.0,0.01079366]
[1741825655070,0.13061197,83889.0,83888.0,0.01015366]
[1741825655372,0.10861197,83889.0,83888.0,0.01015366]
[1741825655665,0.11992115,83889.0,83888.0,0.01015366]
[1741825655968,0.12003773,83889.0,83888.0,0.01015366]
[1741825656165,0.28893773,83889.0,83888.0,0.01015366]
[1741825657774,0.28882831,83889.0,83888.0,0.01015366]
[1741825658572,0.28882831,83889.0,83875.0,0.01060698]
[1741825658573,0.1192393,83880.0,83875.0,0.01060698]
[1741825658865,0.13051535,83880.0,83875.0,0.01060698]
[1741825659055,0.14182453,83880.0,83875.0,0.01060698]
[1741825659258,0.14182453,83880.0,83879.0,0.12924499]
[1741825659654,0.14177545,83880.0,83879.0,0.12924499]
[1741825659863,0.14177545,83880.0,83879.0,0.01000419]
[1741825662165,0.02253615,83880.0,83879.0,0.01000419]
[1741825662366,0.00011658,83889.0,83888.0,0.119228]
[1741825663160,0.00011658,83889.0,83888.0,0.286028]
[1741825663561,0.00011658,83889.0,83888.0,0.29824565]
[1741825664161,0.00011658,83889.0,83888.0,0.35824565]
[1741825664567,0.00011658,83889.0,83888.0,0.30824565]
[1741825665270,0.11934308,83889.0,83888.0,0.286028]
[1741825665474,0.11934308,83889.0,83888.0,0.1668]
[1741825665659,0.11934308,83889.0,83888.0,0.29276]
[1741825665861,0.11934308,83889.0,83888.0,0.332088]
[1741825666469,0.11934308,83889.0,83888.0,0.12596]
[1741825666768,0.11934308,83889.0,83888.0,0.245188]
[1741825667465,0.01849825,83889.0,83888.0,0.245188]
[1741825667665,0.13772475,83889.0,83888.0,0.409688]
[1741825667873,0.11934308,83889.0,83888.0,0.409688]
[1741825668259,0.11934308,83889.0,83888.0,0.20624]
[1741825668260,0.13772688,83889.0,83888.0,0.20624]
[1741825668568,0.1192365,83882.0,83881.0,0.0839]
[1741825668758,0.1192365,83882.0,83881.0,0.2031379]
[1741825668960,0.1192365,83882.0,83881.0,0.2837379]
[1741825669462,0.2022365,83882.0,83881.0,0.2837379]
[1741825669668,0.0596104,83894.0,83881.0,0.2837379]
[1741825669669,0.0596154,83886.0,83885.0,0.1192322]
[1741825669867,0.2876292,83888.0,83887.0,0.1192294]
[1741825670562,0.2876292,83888.0,83887.0,0.2848294]
[1741825670769,0.2022292,83888.0,83887.0,0.2848294]
[1741825671477,0.1192292,83888.0,83887.0,0.2848294]
[1741825671775,0.00011658,83889.0,83888.0,0.119228]
[1741825671959,0.00011658,83889.0,83888.0,0.287128]
[1741825672273,0.11934308,83889.0,83888.0,0.287128]
[1741825673569,0.00011658,83889.0,83888.0,0.287128]
[1741825674277,0.1192365,83882.0,83879.0,0.01000419]
[1741825674460,0.2842379,83881.0,83880.0,0.20582]
[1741825675268,0.29556291,83881.0,83880.0,0.20582]
[1741825675471,0.29549214,83881.0,83880.0,0.0807]
[1741825675666,0.18779658,83881.0,83879.0,0.01000419]
[1741825675867,0.13049354,83880.0,83879.0,0.01000419]
[1741825676062,0.13049354,83880.0,83879.0,0.12924499]
[1741825676263,0.31143588,83880.0,83879.0,0.12924499]
[1741825676785,0.31143588,83880.0,83879.0,0.01000419]
[1741825677367,0.31143588,83880.0,83879.0,0.09020419]
[1741825679580,0.3114237,83880.0,83879.0,0.09020419]
[1741825681872,0.3114237,83880.0,83879.0,0.20944499]
[1741825682466,0.3114237,83880.0,83879.0,0.09020419]
[1741825682769,0.2290237,83880.0,83879.0,0.20944499]
[1741825683366,0.40650294,83880.0,83879.0,0.20944499]
[1741825684980,0.40650294,83880.0,83879.0,0.09020419]
[1741825685179,0.40661952,83880.0,83879.0,0.01000419]
[1741825685381,0.1192564,83868.0,83865.0,0.01644868]
[1741825685582,0.14920259,83868.0,83865.0,0.01644868]
[1741825685885,0.16074493,83868.0,83867.0,0.12972921]
[1741825686079,0.16074493,83868.0,83867.0,0.01047141]
[1741825686285,0.32304493,83868.0,83867.0,0.01047141]
[1741825686675,0.32342136,83868.0,83867.0,0.01047141]
[1741825688574,0.18556837,83868.0,83864.0,0.01704186]
[1741825688775,0.1192607,83865.0,83864.0,0.01704186]
[1741825689089,0.14926306,83865.0,83864.0,0.01704186]
[1741825689473,0.14234241,83865.0,83864.0,0.01704186]
[1741825690283,0.02308171,83865.0,83864.0,0.13630396]
[1741825690581,0.01154234,83865.0,83864.0,0.41016396]
[1741825690776,0.00010316,83868.0,83867.0,0.1192578]
[1741825691175,0.00010316,83868.0,83867.0,0.13099755]
[1741825691871,0.0596293,83867.0,83864.0,0.55086176]
[1741825692077,0.1192607,83865.0,83864.0,0.56200483]
[1741825693181,0.0876,83866.0,83865.0,0.1192607]
[1741825693487,0.2068592,83866.0,83865.0,0.2890607]
[1741825695273,0.2068592,83866.0,83865.0,0.1698]
[1741825695473,0.2068592,83866.0,83865.0,0.2890607]
[1741825695890,0.0876,83866.0,83865.0,0.2890607]
[1741825696577,0.2068592,83866.0,83865.0,0.2890607]
[1741825696980,0.1192607,83865.0,83864.0,0.01704186]
[1741825697181,0.2892607,83865.0,83864.0,0.01704186]
[1741825699080,0.4392607,83865.0,83864.0,0.01704186]
[1741825699303,0.4392607,83865.0,83861.0,0.01580172]
[1741825699304,0.1192735,83856.0,83844.0,0.0876]
[1741825699485,0.13170411,83856.0,83850.0,0.10408192]
[1741825700086,0.01243061,83856.0,83845.0,0.01084231]
[1741825700290,0.1192848,83848.0,83845.0,0.01084231]
[1741825700595,0.1192848,83848.0,83847.0,0.12107507]
[1741825701093,0.11940099,83848.0,83847.0,0.00178877]
[1741825701293,0.37390099,83848.0,83847.0,0.00178877]
[1741825702094,0.1192877,83846.0,83840.0,0.00015139]
[1741825702395,0.1192948,83841.0,83840.0,1e-08]
[1741825703181,0.13066006,83841.0,83840.0,1e-08]
[1741825703387,0.13066006,83841.0,83828.0,0.01015843]
[1741825703388,0.1193062,83833.0,83828.0,0.01015843]
[1741825703696,0.13067146,83833.0,83828.0,0.01015843]
[1741825704385,0.29941769,83833.0,83828.0,0.01015843]
[1741825704687,0.31117953,83833.0,83828.0,0.01015843]
[1741825705594,0.29981427,83833.0,83828.0,0.01015843]
[1741825706183,0.29981427,83833.0,83829.0,0.0876]
[1741825706184,0.28805243,83833.0,83829.0,0.0876]
[1741825706996,0.28805243,83833.0,83832.0,0.12925582]
[1741825707384,0.28805243,83833.0,83832.0,0.00994822]
[1741825707696,0.29929088,83833.0,83832.0,0.12925582]
[1741825708593,0.29929088,83833.0,83832.0,0.00994822]
[1741825709294,0.29929088,83833.0,83832.0,0.12925582]
[1741825710196,0.29929088,83833.0,83832.0,0.17364822]
[1741825710496,0.29929088,83833.0,83832.0,0.09284822]
[1741825712092,0.29929088,83833.0,83832.0,0.21215582]
[1741825713205,0.29929088,83833.0,83832.0,0.09284822]
[1741825714308,0.38239088,83833.0,83832.0,0.00994822]
[1741825715991,0.29929088,83833.0,83832.0,0.12925582]
[1741825716187,0.29929088,83833.0,83832.0,0.00994822]
[1741825716589,0.29929088,83833.0,83832.0,0.17814822]
[1741825716789,0.28805243,83833.0,83832.0,0.17814822]
[1741825717200,0.28805243,83833.0,83832.0,0.29745582]
[1741825717899,0.29930368,83833.0,83832.0,0.29745582]
[1741825718382,0.29930368,83833.0,83832.0,0.17814822]
[1741825718796,0.01139748,83833.0,83832.0,0.29745582]
[1741825719096,0.14220256,83837.0,83836.0,0.1193019]
[1741825719397,0.14220256,83837.0,83836.0,0.2469019]
[1741825720099,8.5e-05,83837.0,83836.0,0.2469019]
[1741825720294,8.5e-05,83837.0,83836.0,0.4969019]
[1741825720894,8.5e-05,83837.0,83836.0,0.2469019]
[1741825721792,0.1193855,83837.0,83836.0,0.2469019]
[1741825722187,0.1193855,83837.0,83833.0,0.1471529]
[1741825722188,0.1193048,83834.0,83833.0,0.0875]
[1741825722400,0.1193048,83834.0,83833.0,0.1739]
[1741825722597,0.1193062,83833.0,83832.0,0.00994822]
[1741825722795,0.2076062,83833.0,83832.0,0.00994822]
[1741825723099,0.21982103,83833.0,83832.0,0.00994822]
[1741825724398,0.2076062,83833.0,83832.0,0.00994822]
[1741825729109,0.1193119,83829.0,83828.0,0.01015843]
[1741825730505,0.1193119,83829.0,83824.0,0.00965887]
[1741825730506,0.1193176,83825.0,83824.0,0.00965887]
[1741825731711,0.11941736,83825.0,83824.0,7e-08]
[1741825731897,0.1193304,83816.0,83811.0,0.01012039]
[1741825732093,0.1193361,83812.0,83811.0,0.01012039]
[1741825732407,0.1193418,83808.0,83807.0,0.00887072]
[1741825733101,0.13061441,83808.0,83807.0,0.00887072]
[1741825733705,0.13061441,83808.0,83807.0,0.09287072]
[1741825734309,0.1193418,83808.0,83807.0,0.09287072]
[1741825735008,0.11946354,83808.0,83807.0,0.00887072]
[1741825735804,0.17746467,83808.0,83807.0,0.00887072]
[1741825738707,0.05800113,83808.0,83802.0,0.00995805]
[1741825738904,0.1193489,83803.0,83802.0,0.00995805]
[1741825739103,0.11946643,83803.0,83802.0,0.00995805]
[1741825740000,0.1193546,83799.0,83792.0,0.0852]
[1741825740809,0.13138936,83799.0,83792.0,0.0852]
[1741825741112,0.1193603,83795.0,83792.0,0.0852]
[1741825741314,0.1193603,83795.0,83789.0,0.0103196]
[1741825741612,0.1193674,83790.0,83789.0,0.0103196]
[1741825742910,0.11948497,83790.0,83789.0,0.0103196]
[1741825743112,0.1193731,83786.0,83785.0,0.00972377]
[1741825743507,0.0596857,83788.0,83780.0,0.00012184]
[1741825743715,0.1193788,83782.0,83780.0,0.00012184]
[1741825743913,0.13122204,83782.0,83781.0,0.09509636]
[1741825744102,0.13122204,83782.0,83781.0,0.00899636]
[1741825744304,0.1193845,83778.0,83772.0,0.09523463]
[1741825745008,0.13062415,83778.0,83772.0,0.09523463]
[1741825745203,0.22052415,83778.0,83772.0,0.09523463]
[1741825746116,0.1193916,83773.0,83772.0,0.09523463]
[1741825746717,0.1193916,83773.0,83772.0,0.00913463]
[1741825746718,0.11951334,83773.0,83772.0,0.00913463]
[1741825746913,0.29121334,83773.0,83772.0,0.00913463]
[1741825748020,0.28846455,83773.0,83772.0,0.00913463]
[1741825749425,0.28846455,83773.0,83766.0,0.0846]
[1741825749614,0.1194002,83767.0,83766.0,0.0846]
[1741825749815,0.13065141,83767.0,83766.0,0.0846]